[Event "Late-Titled-Tuesday-Blitz-October-03-2023"]
[Site "Chess.com"]
[Date "2023.10.03"]
[Round "10"]
[White "pedromartinez91"]
[Black "KNVB"]
[Result "0-1"]
[WhiteElo "2565"]
[BlackElo "2696"]
[TimeControl "180+1"]
[EndTime "15:51:21 PDT"]
[Termination "KNVB won by resignation"]

1. d4 {[%clk 0:03:00.9]} 1... Nf6 {[%clk 0:02:56.8]} 2. c4 {[%clk 0:03:00.6]}
2... e5 {[%clk 0:02:56]} 3. dxe5 {[%clk 0:02:58.2]} 3... Ng4 {[%clk 0:02:53.2]}
4. e3 {[%clk 0:02:52.3]} 4... Nxe5 {[%clk 0:02:50.4]} 5. Nh3 {[%clk 0:02:51.5]}
5... d5 {[%clk 0:02:49.6]} 6. cxd5 {[%clk 0:02:49.1]} 6... Bxh3 {[%clk
0:02:49.2]} 7. gxh3 {[%clk 0:02:49.7]} 7... Bd6 {[%clk 0:02:49.2]} 8. Bg2 {[%clk
0:02:48.5]} 8... O-O {[%clk 0:02:35.5]} 9. Nc3 {[%clk 0:02:42.5]} 9... Ng6
{[%clk 0:02:22.8]} 10. Bd2 {[%clk 0:02:26.7]} 10... Nd7 {[%clk 0:02:00.8]} 11.
Qe2 {[%clk 0:02:15.4]} 11... Nh4 {[%clk 0:01:41.7]} 12. Be4 {[%clk 0:02:05.8]}
12... f5 {[%clk 0:01:14.9]} 13. Bd3 {[%clk 0:01:56.8]} 13... Ng2+ {[%clk
0:01:05]} 14. Kd1 {[%clk 0:01:56.6]} 14... Ne5 {[%clk 0:00:10.8]} 15. f4 {[%clk
0:01:46]} 15... Nxd3 {[%clk 0:00:09]} 16. Qxd3 {[%clk 0:01:46.9]} 16... Qh4
{[%clk 0:00:07.3]} 17. Kc2 {[%clk 0:01:23.3]} 17... Qxh3 {[%clk 0:00:05.3]} 18.
Raf1 {[%clk 0:01:24]} 18... Rae8 {[%clk 0:00:04.7]} 19. Nd1 {[%clk 0:01:24.3]}
19... Nh4 {[%clk 0:00:03.3]} 20. Rhg1 {[%clk 0:01:19.6]} 20... a6 {[%clk
0:00:02.2]} 21. Rg3 {[%clk 0:01:17.6]} 21... Qxh2 {[%clk 0:00:02.1]} 22. Rfg1
{[%clk 0:01:17.6]} 22... Ng6 {[%clk 0:00:01.9]} 23. R1g2 {[%clk 0:01:12.9]}
23... Qh5 {[%clk 0:00:02.2]} 24. Nf2 {[%clk 0:01:05]} 24... Rf7 {[%clk
0:00:02.6]} 25. Rh3 {[%clk 0:01:04.2]} 25... Nh4 {[%clk 0:00:03.3]} 26. Rg5
{[%clk 0:00:27.1]} 26... Qh6 {[%clk 0:00:03.5]} 27. e4 {[%clk 0:00:21.7]} 27...
Be7 {[%clk 0:00:03.3]} 28. Rxf5 {[%clk 0:00:15]} 28... Nxf5 {[%clk 0:00:03.1]}
29. exf5 {[%clk 0:00:15.9]} 29... Qf6 {[%clk 0:00:03]} 30. Rh5 {[%clk
0:00:10.3]} 30... Rd8 {[%clk 0:00:02.9]} 31. Ne4 {[%clk 0:00:09.6]} 31... Qb6
{[%clk 0:00:03.3]} 32. Bc3 {[%clk 0:00:09.2]} 32... Qb5 {[%clk 0:00:02.4]} 33.
Qd4 {[%clk 0:00:09]} 33... Qxd5 {[%clk 0:00:02.2]} 34. Qxd5 {[%clk 0:00:05.1]}
34... Rxd5 {[%clk 0:00:03.1]} 35. Ng3 {[%clk 0:00:03]} 35... Bf6 {[%clk
0:00:03.3]} 36. Bd2 {[%clk 0:00:02.7]} 36... Bxb2 {[%clk 0:00:01.9]} 37. Be3
{[%clk 0:00:02.2]} 37... Bd4 {[%clk 0:00:02.1]} 38. Bd2 {[%clk 0:00:02.1]} 38...
c5 {[%clk 0:00:02]} 39. f6 {[%clk 0:00:02.4]} 39... Rxh5 {[%clk 0:00:02.1]} 40.
Nxh5 {[%clk 0:00:03]} 40... Bxf6 {[%clk 0:00:02.7]} 41. Ng3 {[%clk 0:00:02.3]}
41... Bd4 {[%clk 0:00:02.9]} 42. Nf5 {[%clk 0:00:02.8]} 42... Rxf5 {[%clk
0:00:03.2]} 43. Be3 {[%clk 0:00:02.5]} 43... g6 {[%clk 0:00:04.1]} 44. Bxd4
{[%clk 0:00:02.8]} 44... cxd4 {[%clk 0:00:05]} 45. Kd3 {[%clk 0:00:03.2]} 45...
Rxf4 {[%clk 0:00:05.9]} 46. Kd2 {[%clk 0:00:03.4]} 46... Rf6 {[%clk 0:00:06.8]}
47. Ke2 {[%clk 0:00:04.1]} 47... Rf5 {[%clk 0:00:07.4]} 48. a4 {[%clk 0:00:05]}
48... Kf7 {[%clk 0:00:08.3]} 49. a5 {[%clk 0:00:05.9]} 49... Rxa5 {[%clk
0:00:08.6]} 50. Ke1 {[%clk 0:00:06.8]} 50... Rf5 {[%clk 0:00:09.3]} 0-1

[Event "Late-Titled-Tuesday-Blitz-October-03-2023"]
[Site "Chess.com"]
[Date "2023.10.03"]
[Round "10"]
[White "K_alena13"]
[Black "mfwagnerpeixoto"]
[Result "0-1"]
[WhiteElo "2144"]
[BlackElo "2332"]
[TimeControl "180+1"]
[EndTime "15:51:23 PDT"]
[Termination "mfwagnerpeixoto won on time"]

1. Nf3 {[%clk 0:03:00.9]} 1... c5 {[%clk 0:02:58.2]} 2. c4 {[%clk 0:03:00.5]}
2... Nc6 {[%clk 0:02:57.9]} 3. Nc3 {[%clk 0:03:00.9]} 3... g6 {[%clk 0:02:58.1]}
4. e3 {[%clk 0:03:01.1]} 4... e5 {[%clk 0:02:53.3]} 5. d4 {[%clk 0:02:54.9]}
5... cxd4 {[%clk 0:02:52.5]} 6. exd4 {[%clk 0:02:55.8]} 6... Bg7 {[%clk
0:02:43.6]} 7. d5 {[%clk 0:02:29.3]} 7... Nd4 {[%clk 0:02:40.9]} 8. Nxd4 {[%clk
0:02:22.8]} 8... exd4 {[%clk 0:02:41.8]} 9. Nb5 {[%clk 0:02:19.4]} 9... d6
{[%clk 0:01:56.9]} 10. Qa4 {[%clk 0:01:52]} 10... Kf8 {[%clk 0:01:52.8]} 11. Qa3
{[%clk 0:01:42.3]} 11... Qe7+ {[%clk 0:01:47.9]} 12. Be2 {[%clk 0:01:40.2]}
12... a6 {[%clk 0:01:12.6]} 13. Nxd6 {[%clk 0:01:28.8]} 13... d3 {[%clk
0:01:07.3]} 14. Nxc8 {[%clk 0:01:11.4]} 14... Qxa3 {[%clk 0:00:59.2]} 15. bxa3
{[%clk 0:01:12.3]} 15... Bxa1 {[%clk 0:00:56.4]} 16. Nb6 {[%clk 0:00:23]} 16...
Re8 {[%clk 0:00:46.5]} 17. Be3 {[%clk 0:00:22.6]} 17... dxe2 {[%clk 0:00:43.5]}
18. d6 {[%clk 0:00:18.3]} 18... Be5 {[%clk 0:00:31.4]} 19. d7 {[%clk 0:00:17]}
19... Rd8 {[%clk 0:00:31.5]} 20. Bc5+ {[%clk 0:00:10.2]} 20... Kg7 {[%clk
0:00:30.3]} 21. Kxe2 {[%clk 0:00:08.7]} 21... Nf6 {[%clk 0:00:20.3]} 22. Rd1
{[%clk 0:00:08]} 22... Bc7 {[%clk 0:00:17.3]} 23. Be7 {[%clk 0:00:04.2]} 23...
Bxb6 {[%clk 0:00:16.7]} 24. Bxd8 {[%clk 0:00:04.6]} 24... Rxd8 {[%clk
0:00:15.5]} 25. Rd6 {[%clk 0:00:04.8]} 25... Bc7 {[%clk 0:00:14.6]} 26. Rd4
{[%clk 0:00:04.2]} 26... Rxd7 {[%clk 0:00:14.3]} 27. Rh4 {[%clk 0:00:03.5]}
27... Re7+ {[%clk 0:00:14.1]} 28. Kf1 {[%clk 0:00:03.3]} 28... Re4 {[%clk
0:00:10.3]} 29. Rh3 {[%clk 0:00:02.6]} 29... Rxc4 {[%clk 0:00:10.4]} 30. Rb3
{[%clk 0:00:02.6]} 30... Rc1+ {[%clk 0:00:09.7]} 31. Ke2 {[%clk 0:00:02.3]}
31... Rc2+ {[%clk 0:00:10.3]} 32. Ke3 {[%clk 0:00:02.6]} 32... b5 {[%clk
0:00:10.5]} 33. Rd3 {[%clk 0:00:01.9]} 33... Bxh2 {[%clk 0:00:08.7]} 34. Kf3
{[%clk 0:00:02.1]} 34... Bg1 {[%clk 0:00:08.8]} 35. Kf4 {[%clk 0:00:01.4]} 35...
Rxf2+ {[%clk 0:00:08.9]} 36. Ke5 {[%clk 0:00:01.8]} 36... Rxa2 {[%clk 0:00:09]}
37. Kd6 {[%clk 0:00:01.9]} 37... Bf2 {[%clk 0:00:08.8]} 38. Kc7 {[%clk 0:00:02]}
38... Bh4 {[%clk 0:00:08.4]} 39. Kb6 {[%clk 0:00:02.1]} 39... Be1 {[%clk
0:00:08.1]} 40. Kxa6 {[%clk 0:00:02.2]} 40... b4 {[%clk 0:00:08.5]} 41. Kb5
{[%clk 0:00:02.3]} 41... Rxa3 {[%clk 0:00:08.9]} 42. Kc4 {[%clk 0:00:01.9]}
42... Rxd3 {[%clk 0:00:08.8]} 43. Kxd3 {[%clk 0:00:02.8]} 43... b3 {[%clk
0:00:09.3]} 44. g4 {[%clk 0:00:01.7]} 44... Ba5 {[%clk 0:00:09.9]} 0-1

[Event "Late-Titled-Tuesday-Blitz-October-03-2023"]
[Site "Chess.com"]
[Date "2023.10.03"]
[Round "10"]
[White "Verony64"]
[Black "falzehope0"]
[Result "0-1"]
[WhiteElo "2212"]
[BlackElo "2334"]
[TimeControl "180+1"]
[EndTime "15:51:28 PDT"]
[Termination "falzehope0 won on time"]

1. d4 {[%clk 0:03:00.9]} 1... e6 {[%clk 0:02:53.8]} 2. c4 {[%clk 0:03:00.4]}
2... d5 {[%clk 0:02:53.4]} 3. cxd5 {[%clk 0:02:59.8]} 3... exd5 {[%clk
0:02:53.6]} 4. Nc3 {[%clk 0:03:00.5]} 4... f5 {[%clk 0:02:53.5]} 5. h3 {[%clk
0:02:58.7]} 5... Nf6 {[%clk 0:02:53.3]} 6. Bf4 {[%clk 0:02:55.8]} 6... Bb4
{[%clk 0:02:43.8]} 7. e3 {[%clk 0:02:55.9]} 7... O-O {[%clk 0:02:41.5]} 8. Nf3
{[%clk 0:02:54.1]} 8... c5 {[%clk 0:02:26.6]} 9. Bd3 {[%clk 0:02:34.2]} 9...
cxd4 {[%clk 0:02:24.2]} 10. Nxd4 {[%clk 0:02:30.7]} 10... Ne4 {[%clk 0:02:21.5]}
11. Qb3 {[%clk 0:02:11.4]} 11... Bxc3+ {[%clk 0:02:16.1]} 12. bxc3 {[%clk
0:02:09]} 12... Nc6 {[%clk 0:02:16.1]} 13. Bxe4 {[%clk 0:01:59.3]} 13... fxe4
{[%clk 0:02:13.7]} 14. Rd1 {[%clk 0:01:51.1]} 14... Kh8 {[%clk 0:02:04.7]} 15.
O-O {[%clk 0:01:50.7]} 15... Na5 {[%clk 0:01:55.6]} 16. Qb4 {[%clk 0:01:34.8]}
16... Nc4 {[%clk 0:01:52]} 17. Nb5 {[%clk 0:01:19]} 17... a5 {[%clk 0:01:30.1]}
18. Qc5 {[%clk 0:01:02.5]} 18... Bxh3 {[%clk 0:01:27.3]} 19. gxh3 {[%clk
0:00:46]} 19... Qh4 {[%clk 0:01:26.4]} 20. Qxd5 {[%clk 0:00:30]} 20... Qxh3
{[%clk 0:01:14.5]} 21. Qxe4 {[%clk 0:00:27.6]} 21... Rf6 {[%clk 0:01:03.2]} 22.
Qg2 {[%clk 0:00:25.3]} 22... Rg6 {[%clk 0:01:02]} 23. Bg3 {[%clk 0:00:25.4]}
23... Qh5 {[%clk 0:00:55.4]} 24. Nd4 {[%clk 0:00:20.5]} 24... Re8 {[%clk
0:00:36.3]} 25. Ne2 {[%clk 0:00:19]} 25... Qxe2 {[%clk 0:00:33.9]} 26. Rfe1
{[%clk 0:00:17.6]} 26... Qh5 {[%clk 0:00:32.1]} 27. Rd4 {[%clk 0:00:17]} 27...
b5 {[%clk 0:00:30.4]} 28. Rh4 {[%clk 0:00:15.5]} 28... Qf5 {[%clk 0:00:27]} 29.
Qh2 {[%clk 0:00:11.9]} 29... h6 {[%clk 0:00:25.4]} 30. Qg2 {[%clk 0:00:12]}
30... Kh7 {[%clk 0:00:21.8]} 31. Rf4 {[%clk 0:00:11.6]} 31... Qc2 {[%clk
0:00:20.9]} 32. a4 {[%clk 0:00:09.4]} 32... Qxc3 {[%clk 0:00:20.7]} 33. Rd1
{[%clk 0:00:07.4]} 33... b4 {[%clk 0:00:19]} 34. Rd7 {[%clk 0:00:06.9]} 34...
Nxe3 {[%clk 0:00:18.8]} 35. fxe3 {[%clk 0:00:06.2]} 35... Qxe3+ {[%clk
0:00:19.3]} 36. Kh2 {[%clk 0:00:05.6]} 36... Qe6 {[%clk 0:00:16.1]} 37. Rdf7
{[%clk 0:00:03.7]} 37... b3 {[%clk 0:00:14]} 38. Rf2 {[%clk 0:00:03.1]} 38...
Rd8 {[%clk 0:00:10.1]} 39. R7f3 {[%clk 0:00:03.6]} 39... Rd5 {[%clk 0:00:10.2]}
40. Kg1 {[%clk 0:00:01.9]} 40... Rd1+ {[%clk 0:00:09.8]} 41. Rf1 {[%clk
0:00:02.2]} 41... Rd4 {[%clk 0:00:08.3]} 42. R1f2 {[%clk 0:00:02]} 42... Re4
{[%clk 0:00:08.2]} 43. Rf1 {[%clk 0:00:02.2]} 43... Re2 {[%clk 0:00:07.8]} 44.
R3f2 {[%clk 0:00:02.2]} 44... Re4 {[%clk 0:00:06.4]} 45. Rf3 {[%clk 0:00:02.8]}
45... Qd5 {[%clk 0:00:06.2]} 46. R3f2 {[%clk 0:00:02.5]} 46... Qd4 {[%clk
0:00:06.1]} 0-1

[Event "Late-Titled-Tuesday-Blitz-October-03-2023"]
[Site "Chess.com"]
[Date "2023.10.03"]
[Round "10"]
[White "Quattroporte300"]
[Black "Byniolus"]
[Result "0-1"]
[WhiteElo "2381"]
[BlackElo "2732"]
[TimeControl "180+1"]
[EndTime "15:51:29 PDT"]
[Termination "Byniolus won by resignation"]

1. e4 {[%clk 0:02:59.9]} 1... a6 {[%clk 0:03:00.9]} 2. d4 {[%clk 0:02:59.4]}
2... b6 {[%clk 0:03:01.3]} 3. Bd3 {[%clk 0:02:59.1]} 3... c6 {[%clk 0:03:02]} 4.
Nf3 {[%clk 0:02:57.8]} 4... d6 {[%clk 0:03:02.7]} 5. O-O {[%clk 0:02:58.1]} 5...
e6 {[%clk 0:03:03.1]} 6. c4 {[%clk 0:02:58.3]} 6... f6 {[%clk 0:03:03.5]} 7. Nc3
{[%clk 0:02:58.7]} 7... g6 {[%clk 0:03:04.1]} 8. Re1 {[%clk 0:02:55.4]} 8... Ne7
{[%clk 0:03:03.6]} 9. e5 {[%clk 0:02:50.1]} 9... dxe5 {[%clk 0:03:02.1]} 10.
dxe5 {[%clk 0:02:49.8]} 10... f5 {[%clk 0:03:02.7]} 11. Bg5 {[%clk 0:02:46.1]}
11... Bg7 {[%clk 0:03:00.1]} 12. Bf6 {[%clk 0:02:42.1]} 12... O-O {[%clk
0:03:00]} 13. Bxg7 {[%clk 0:02:39.9]} 13... Kxg7 {[%clk 0:03:00.9]} 14. Qe2
{[%clk 0:02:40]} 14... c5 {[%clk 0:02:54.1]} 15. Rad1 {[%clk 0:02:40.1]} 15...
Qc7 {[%clk 0:02:54.6]} 16. h4 {[%clk 0:02:36.4]} 16... h6 {[%clk 0:02:42]} 17.
Bc2 {[%clk 0:02:31.3]} 17... Bd7 {[%clk 0:02:34]} 18. Rd6 {[%clk 0:02:28.4]}
18... Nc8 {[%clk 0:02:32.1]} 19. Rd2 {[%clk 0:02:24.9]} 19... Nc6 {[%clk
0:02:29.9]} 20. Red1 {[%clk 0:02:23.7]} 20... Be8 {[%clk 0:02:29.8]} 21. Qe3
{[%clk 0:02:09.5]} 21... Ra7 {[%clk 0:02:22.3]} 22. a3 {[%clk 0:02:02.5]} 22...
Bf7 {[%clk 0:01:59.1]} 23. Ba4 {[%clk 0:01:59.2]} 23... Rd8 {[%clk 0:01:39.3]}
24. Bxc6 {[%clk 0:01:46.9]} 24... Rxd2 {[%clk 0:01:38.9]} 25. Qxd2 {[%clk
0:01:43.5]} 25... Qxc6 {[%clk 0:01:38.9]} 26. Qd8 {[%clk 0:01:43]} 26... Re7
{[%clk 0:01:30.5]} 27. Rd2 {[%clk 0:01:24.3]} 27... Be8 {[%clk 0:01:21]} 28. b3
{[%clk 0:01:13]} 28... Qc7 {[%clk 0:01:17.4]} 29. Na4 {[%clk 0:01:00.4]} 29...
Bc6 {[%clk 0:00:59.1]} 30. Qxc7 {[%clk 0:00:47]} 30... Rxc7 {[%clk 0:00:59]} 31.
Rd8 {[%clk 0:00:45.2]} 31... Bb7 {[%clk 0:00:40.1]} 32. Kf1 {[%clk 0:00:44.1]}
32... b5 {[%clk 0:00:39.6]} 33. cxb5 {[%clk 0:00:31]} 33... axb5 {[%clk
0:00:40.5]} 34. Nxc5 {[%clk 0:00:29.3]} 34... Rxc5 {[%clk 0:00:20.4]} 35. Rd7+
{[%clk 0:00:29.8]} 35... Kf8 {[%clk 0:00:16.4]} 36. Rxb7 {[%clk 0:00:30]} 36...
Ne7 {[%clk 0:00:16.2]} 37. Ke2 {[%clk 0:00:28.7]} 37... Rc2+ {[%clk 0:00:08.6]}
38. Nd2 {[%clk 0:00:28]} 38... Nc6 {[%clk 0:00:06.6]} 39. f4 {[%clk 0:00:27.6]}
39... Ra2 {[%clk 0:00:06]} 40. Rxb5 {[%clk 0:00:25.5]} 40... Nd4+ {[%clk
0:00:06.1]} 41. Kd3 {[%clk 0:00:24.1]} 41... Nxb5 {[%clk 0:00:07]} 42. a4 {[%clk
0:00:24.6]} 42... Nc7 {[%clk 0:00:05.8]} 43. g3 {[%clk 0:00:23]} 43... Ke7
{[%clk 0:00:05.7]} 44. Kc3 {[%clk 0:00:20.3]} 44... Kd7 {[%clk 0:00:04.9]} 45.
Nc4 {[%clk 0:00:13.8]} 45... Nd5+ {[%clk 0:00:04.7]} 46. Kd4 {[%clk 0:00:13.4]}
46... Rg2 {[%clk 0:00:02.7]} 47. a5 {[%clk 0:00:12.9]} 47... Kc6 {[%clk
0:00:02.4]} 48. a6 {[%clk 0:00:12.1]} 48... Rxg3 {[%clk 0:00:01.8]} 0-1

[Event "Late-Titled-Tuesday-Blitz-October-03-2023"]
[Site "Chess.com"]
[Date "2023.10.03"]
[Round "10"]
[White "Njal28"]
[Black "Harsha_Bharathakoti"]
[Result "1/2-1/2"]
[WhiteElo "3078"]
[BlackElo "2925"]
[TimeControl "180+1"]
[EndTime "15:51:32 PDT"]
[Termination "Game drawn by repetition"]

1. d4 {[%clk 0:03:00.9]} 1... Nf6 {[%clk 0:02:57.9]} 2. c4 {[%clk 0:03:01.6]}
2... e6 {[%clk 0:02:54.7]} 3. Nc3 {[%clk 0:03:02.3]} 3... d5 {[%clk 0:02:54.4]}
4. Bg5 {[%clk 0:03:01.3]} 4... dxc4 {[%clk 0:02:39.8]} 5. e3 {[%clk 0:03:01.5]}
5... h6 {[%clk 0:02:39.7]} 6. Bxf6 {[%clk 0:03:01.6]} 6... Qxf6 {[%clk
0:02:39.6]} 7. Bxc4 {[%clk 0:03:02.5]} 7... c5 {[%clk 0:02:32.9]} 8. Nf3 {[%clk
0:03:02.8]} 8... cxd4 {[%clk 0:02:30]} 9. Nxd4 {[%clk 0:03:03.7]} 9... Bd7
{[%clk 0:02:29.8]} 10. O-O {[%clk 0:03:03.8]} 10... a6 {[%clk 0:02:24.6]} 11.
Ne4 {[%clk 0:03:04.2]} 11... Qe5 {[%clk 0:02:19.4]} 12. Qf3 {[%clk 0:02:37.8]}
12... Nc6 {[%clk 0:02:19]} 13. Rfd1 {[%clk 0:02:38.4]} 13... Be7 {[%clk
0:02:19.4]} 14. Nc3 {[%clk 0:02:12.9]} 14... Rd8 {[%clk 0:02:10.8]} 15. Bd3
{[%clk 0:02:04.9]} 15... O-O {[%clk 0:02:00.6]} 16. Be4 {[%clk 0:02:05.3]} 16...
Rc8 {[%clk 0:01:25.3]} 17. Nxc6 {[%clk 0:01:53.4]} 17... Bxc6 {[%clk 0:01:25.4]}
18. Bxc6 {[%clk 0:01:54]} 18... Rxc6 {[%clk 0:01:26.1]} 19. Rd7 {[%clk
0:01:54.1]} 19... Rc7 {[%clk 0:01:26.7]} 20. Rad1 {[%clk 0:01:50.2]} 20... Rfc8
{[%clk 0:01:26.6]} 21. g3 {[%clk 0:01:40]} 21... Rxd7 {[%clk 0:01:14.9]} 22.
Rxd7 {[%clk 0:01:40.9]} 22... Rc7 {[%clk 0:01:15.6]} 23. Qd1 {[%clk 0:01:39.2]}
23... Bf6 {[%clk 0:00:57.7]} 24. Qd2 {[%clk 0:01:17]} 24... Qa5 {[%clk
0:00:36.4]} 25. Rxc7 {[%clk 0:00:49.7]} 25... Qxc7 {[%clk 0:00:36.4]} 26. Ne4
{[%clk 0:00:46.6]} 26... Be7 {[%clk 0:00:35.5]} 27. Qc3 {[%clk 0:00:34.2]} 27...
Qxc3 {[%clk 0:00:34]} 28. Nxc3 {[%clk 0:00:35.1]} 28... Kf8 {[%clk 0:00:30.5]}
29. Kf1 {[%clk 0:00:32.6]} 29... Ke8 {[%clk 0:00:30.3]} 30. Ke2 {[%clk
0:00:32.8]} 30... Kd7 {[%clk 0:00:30.1]} 31. Kd3 {[%clk 0:00:32.2]} 31... Bf6
{[%clk 0:00:28]} 32. b4 {[%clk 0:00:16.7]} 32... Bxc3 {[%clk 0:00:27.3]} 33.
Kxc3 {[%clk 0:00:17.6]} 33... Kd6 {[%clk 0:00:22.4]} 34. Kc4 {[%clk 0:00:13.4]}
34... b5+ {[%clk 0:00:22.3]} 35. Kd4 {[%clk 0:00:10]} 35... e5+ {[%clk
0:00:21.1]} 36. Kd3 {[%clk 0:00:09.6]} 36... Kd5 {[%clk 0:00:17.8]} 37. e4+
{[%clk 0:00:09.4]} 37... Kd6 {[%clk 0:00:17.9]} 38. h4 {[%clk 0:00:06.6]} 38...
h5 {[%clk 0:00:17.9]} 39. f4 {[%clk 0:00:05.3]} 39... g6 {[%clk 0:00:11.8]} 40.
Ke3 {[%clk 0:00:04.2]} 40... Ke6 {[%clk 0:00:12.2]} 41. Kf3 {[%clk 0:00:03.1]}
41... Kf6 {[%clk 0:00:12]} 42. a3 {[%clk 0:00:02.6]} 42... Ke6 {[%clk
0:00:12.2]} 43. Ke3 {[%clk 0:00:02.8]} 43... Kf6 {[%clk 0:00:12.7]} 44. Kf3
{[%clk 0:00:03]} 44... Ke6 {[%clk 0:00:13.3]} 45. Kf2 {[%clk 0:00:02.4]} 45...
Kf6 {[%clk 0:00:13.5]} 46. Ke3 {[%clk 0:00:02.8]} 46... Ke6 {[%clk 0:00:14]} 47.
Kf3 {[%clk 0:00:03.2]} 47... Kf6 {[%clk 0:00:10.4]} 48. Ke3 {[%clk 0:00:02.7]}
48... Ke6 {[%clk 0:00:10.4]} 49. Kf2 {[%clk 0:00:02.5]} 49... f5 {[%clk
0:00:08.8]} 50. Kf3 {[%clk 0:00:02.4]} 50... Kf6 {[%clk 0:00:07.5]} 51. Ke3
{[%clk 0:00:02]} 51... Ke6 {[%clk 0:00:07.9]} 52. Kf3 {[%clk 0:00:02.2]} 52...
Kf6 {[%clk 0:00:07.1]} 53. Ke3 {[%clk 0:00:02.6]} 53... Ke6 {[%clk 0:00:07.7]}
54. Kf3 {[%clk 0:00:03.1]} 1/2-1/2

[Event "Late-Titled-Tuesday-Blitz-October-03-2023"]
[Site "Chess.com"]
[Date "2023.10.03"]
[Round "10"]
[White "Valeron87"]
[Black "Garmendiarov"]
[Result "0-1"]
[WhiteElo "2474"]
[BlackElo "2353"]
[TimeControl "180+1"]
[EndTime "15:51:32 PDT"]
[Termination "Garmendiarov won by resignation"]

1. e4 {[%clk 0:03:00.9]} 1... c5 {[%clk 0:02:57]} 2. Nf3 {[%clk 0:02:59.3]} 2...
e6 {[%clk 0:02:56.8]} 3. d4 {[%clk 0:02:59.8]} 3... cxd4 {[%clk 0:02:57.7]} 4.
Nxd4 {[%clk 0:03:00.2]} 4... Bc5 {[%clk 0:02:58]} 5. Nb3 {[%clk 0:03:00.1]} 5...
Bb6 {[%clk 0:02:58.5]} 6. Bd3 {[%clk 0:02:58.2]} 6... Ne7 {[%clk 0:02:58.8]} 7.
Qe2 {[%clk 0:02:52.7]} 7... O-O {[%clk 0:02:58.3]} 8. Be3 {[%clk 0:02:53]} 8...
f5 {[%clk 0:02:50.9]} 9. exf5 {[%clk 0:02:45.8]} 9... Nxf5 {[%clk 0:02:51.8]}
10. Bxb6 {[%clk 0:02:45.7]} 10... Qxb6 {[%clk 0:02:51.5]} 11. Nc3 {[%clk
0:02:39.3]} 11... Nc6 {[%clk 0:02:49.8]} 12. O-O {[%clk 0:02:36.9]} 12... d5
{[%clk 0:02:44.5]} 13. Nb5 {[%clk 0:02:16.9]} 13... a6 {[%clk 0:02:31.5]} 14.
Bxf5 {[%clk 0:02:16.5]} 14... Rxf5 {[%clk 0:02:18.4]} 15. Nd6 {[%clk 0:02:16.3]}
15... Rf6 {[%clk 0:02:15.5]} 16. c4 {[%clk 0:02:04.2]} 16... Bd7 {[%clk
0:01:33.4]} 17. Rad1 {[%clk 0:01:46.2]} 17... Raf8 {[%clk 0:01:06.5]} 18. c5
{[%clk 0:01:37.2]} 18... Qb4 {[%clk 0:01:00]} 19. Ne4 {[%clk 0:01:21.1]} 19...
Qxe4 {[%clk 0:00:47.4]} 20. Qxe4 {[%clk 0:01:20.7]} 20... dxe4 {[%clk
0:00:48.3]} 21. Rxd7 {[%clk 0:01:18.8]} 21... Ne5 {[%clk 0:00:18.3]} 22. Rd4
{[%clk 0:00:54.6]} 22... e3 {[%clk 0:00:14.9]} 23. f3 {[%clk 0:00:51.3]} 23...
e2 {[%clk 0:00:12.6]} 24. Re1 {[%clk 0:00:51.4]} 24... Rxf3 {[%clk 0:00:07.7]}
25. gxf3 {[%clk 0:00:51.5]} 25... Nxf3+ {[%clk 0:00:08.6]} 26. Kf2 {[%clk
0:00:43.4]} 26... Nxd4+ {[%clk 0:00:08.9]} 27. Ke3 {[%clk 0:00:42.1]} 27... Nc2+
{[%clk 0:00:07.9]} 28. Kxe2 {[%clk 0:00:41]} 28... Nxe1 {[%clk 0:00:08.8]} 29.
Kxe1 {[%clk 0:00:41.2]} 29... Rf4 {[%clk 0:00:07.9]} 30. a3 {[%clk 0:00:34.8]}
30... Rh4 {[%clk 0:00:07.5]} 31. Na5 {[%clk 0:00:35.1]} 31... Rxh2 {[%clk
0:00:05.8]} 32. b4 {[%clk 0:00:35.3]} 32... Kf7 {[%clk 0:00:03.6]} 33. Nxb7
{[%clk 0:00:35.4]} 33... Ke7 {[%clk 0:00:04.2]} 34. c6 {[%clk 0:00:28.6]} 34...
Rc2 {[%clk 0:00:03.8]} 35. Nc5 {[%clk 0:00:27.1]} 35... Kd6 {[%clk 0:00:03.5]}
36. Nxa6 {[%clk 0:00:17.6]} 36... Kxc6 {[%clk 0:00:02.2]} 37. a4 {[%clk
0:00:17.3]} 37... Rc1+ {[%clk 0:00:01.7]} 38. Kd2 {[%clk 0:00:16.8]} 38... Ra1
{[%clk 0:00:02.6]} 39. b5+ {[%clk 0:00:17.3]} 39... Kb6 {[%clk 0:00:03]} 40. a5+
{[%clk 0:00:11.5]} 40... Kxb5 {[%clk 0:00:02.8]} 41. Nc7+ {[%clk 0:00:11.6]}
41... Kxa5 {[%clk 0:00:03.2]} 42. Nxe6 {[%clk 0:00:12.5]} 42... Ra2+ {[%clk
0:00:03.4]} 43. Ke3 {[%clk 0:00:12.2]} 43... Rg2 {[%clk 0:00:03.1]} 44. Kf4
{[%clk 0:00:13.1]} 44... h5 {[%clk 0:00:02.1]} 45. Ng5 {[%clk 0:00:11.7]} 45...
h4 {[%clk 0:00:02.5]} 46. Nh3 {[%clk 0:00:11.7]} 46... Rg3 {[%clk 0:00:02.8]}
47. Nf2 {[%clk 0:00:11.4]} 47... g5+ {[%clk 0:00:03.4]} 48. Ke4 {[%clk
0:00:11.2]} 48... Rg2 {[%clk 0:00:04.1]} 49. Kf3 {[%clk 0:00:11.5]} 49... Rxf2+
{[%clk 0:00:04.5]} 50. Kxf2 {[%clk 0:00:11.8]} 50... g4 {[%clk 0:00:05.2]} 0-1